bitfinex-derivatives/quotes_BTCF0:USTF0_20241203
["timestamp","ask_amount","ask_price","bid_price","bid_amount"]
[1733188939992,0.39332811,95701.0,95700.0,0.1]
[1733188943798,0.26272811,95701.0,95700.0,0.1]
[1733188943988,0.39332811,95701.0,95700.0,0.1]
[1733188947699,0.26272811,95701.0,95700.0,0.1]
[1733188947896,0.39332811,95701.0,95700.0,0.1]
[1733188949694,0.26272811,95701.0,95700.0,0.38089286]
[1733188949996,0.26272811,95701.0,95700.0,0.1308]
[1733188949997,0.15824637,95701.0,95700.0,0.1308]
[1733188950195,0.1306,95707.0,95700.0,0.1609]
[1733188950387,0.1306,95707.0,95706.0,0.052235]
[1733188950593,0.28633324,95707.0,95706.0,0.052235]
[1733188951502,0.39081935,95707.0,95706.0,0.052235]
[1733188952192,0.39181935,95707.0,95706.0,0.052235]
[1733188952397,0.39281935,95707.0,95706.0,0.052235]
[1733188952899,0.26221935,95707.0,95706.0,0.052235]
[1733188953196,0.39281935,95707.0,95706.0,0.052235]
[1733188953910,0.15773324,95707.0,95706.0,0.052235]
[1733188954108,0.0026,95714.0,95713.0,0.052231]
[1733188954310,0.0026,95721.0,95720.0,0.052227]
[1733188954510,0.1306,95725.0,95724.0,0.052225]
[1733188954809,0.28691399,95725.0,95724.0,0.052225]
[1733188955215,0.39138481,95725.0,95724.0,0.052225]
[1733188955407,0.26078481,95725.0,95724.0,0.052225]
[1733188955911,0.26178481,95725.0,95724.0,0.052225]
[1733188956412,0.26278481,95725.0,95724.0,0.053225]
[1733188958007,0.39418481,95725.0,95724.0,0.053225]
[1733188965217,0.44640981,95725.0,95724.0,0.053225]
[1733188966117,0.39418481,95725.0,95724.0,0.053225]
[1733188966315,0.39418481,95725.0,95724.0,0.001]
[1733188966511,0.39418481,95725.0,95724.0,0.053225]
[1733188967215,0.28971399,95725.0,95724.0,0.053225]
[1733188968217,0.34193899,95725.0,95724.0,0.001]
[1733188968422,0.34193899,95725.0,95724.0,0.053225]
[1733188968423,0.21053899,95725.0,95724.0,0.053225]
[1733188968720,0.34193899,95725.0,95724.0,0.053225]
[1733188969118,0.0104,95767.0,95724.0,0.353225]
[1733188969323,0.0329,95759.0,95758.0,0.052207]
[1733188969508,0.13736646,95759.0,95758.0,0.052207]
[1733188969709,0.15596938,95759.0,95758.0,0.052207]
[1733188970111,0.15596938,95765.0,95757.0,0.3608]
[1733188970320,0.0332,95766.0,95763.0,0.052204]
[1733188970321,0.052204,95764.0,95763.0,0.052204]
[1733188970618,0.052204,95764.0,95759.0,0.052206]
[1733188970619,0.052207,95760.0,95759.0,0.052206]
[1733188971008,0.20941568,95760.0,95759.0,0.052206]
[1733188971817,0.15920868,95760.0,95759.0,0.054206]
[1733188976121,0.052206,95759.0,95757.0,0.3608]
[1733188976522,0.35061612,95758.0,95757.0,0.3608]
[1733188977312,0.45504658,95758.0,95757.0,0.3698]
[1733188977516,0.45504658,95758.0,95757.0,0.3788]
[1733188977914,0.45504658,95758.0,95757.0,0.3698]
[1733188978120,0.45704658,95758.0,95757.0,0.3788]
[1733188978423,0.45704658,95758.0,95757.0,0.018]
[1733188980821,0.18965612,95758.0,95757.0,0.018]
[1733188981728,0.29408658,95758.0,95757.0,0.018]
[1733188982118,0.42544658,95758.0,95757.0,0.018]
[1733188982316,0.42544658,95758.0,95754.0,0.3289]
[1733188982534,0.052208,95755.0,95754.0,0.3289]
[1733188982822,0.20897025,95755.0,95754.0,0.3289]
[1733188983216,0.31340398,95755.0,95754.0,0.3289]
[1733188983417,0.31340398,95755.0,95754.0,0.3379]
[1733188983629,0.31440398,95755.0,95754.0,0.3469]
[1733188984218,0.31440398,95755.0,95754.0,0.3379]
[1733188984420,0.31540398,95755.0,95754.0,0.3469]
[1733188985024,0.31540398,95755.0,95754.0,0.297]
[1733188985727,0.67620398,95755.0,95754.0,0.018]
[1733188987619,0.67620398,95755.0,95751.0,0.0026]
[1733188987620,0.05221,95752.0,95751.0,0.0026]
[1733188988022,0.20872293,95752.0,95751.0,0.0026]
[1733188988223,0.31315666,95752.0,95751.0,0.0026]
[1733188989431,0.31315666,95752.0,95751.0,1e-08]
[1733188989621,0.052221,95732.0,95728.0,0.3608]
[1733188989818,0.184341,95732.0,95728.0,0.3608]
[1733188990032,0.1556868,95731.0,95728.0,0.3608]
[1733188990331,0.052222,95730.0,95728.0,0.3608]
[1733188990829,0.15749172,95729.0,95728.0,0.3608]
[1733188991139,0.15749172,95729.0,95728.0,0.413023]
[1733188991523,0.15849172,95731.0,95730.0,0.052222]
[1733188991720,0.001,95731.0,95730.0,0.052222]
[1733188991926,0.001,95731.0,95728.0,0.3608]
[1733188991927,0.17695645,95731.0,95721.0,0.002]
[1733188992127,0.17695645,95731.0,95723.0,0.052225]
[1733188992128,0.052223,95729.0,95723.0,0.052225]
[1733188992421,0.15666088,95728.0,95724.0,0.052225]
[1733188993232,0.15666088,95728.0,95726.0,0.052224]
[1733188993622,0.15766088,95728.0,95726.0,0.052224]
[1733188994123,0.15866088,95728.0,95726.0,0.052224]
[1733188994726,0.15666088,95728.0,95726.0,0.052224]
[1733188995028,0.002,95728.0,95726.0,0.052224]
[1733188995430,0.15769447,95727.0,95721.0,0.002]
[1733188995726,0.052225,95724.0,95721.0,0.002]
[1733188995932,0.052226,95723.0,95721.0,0.054227]
[1733188996130,0.20932566,95723.0,95721.0,0.054227]
[1733188996331,0.052226,95723.0,95721.0,0.054227]
[1733188996831,0.15606141,95722.0,95721.0,0.054227]
[1733188997634,0.15843445,95723.0,95721.0,0.054227]
[1733188998031,0.002,95723.0,95721.0,0.054227]
[1733188998331,0.15643445,95722.0,95721.0,0.054227]
[1733188999528,0.15743445,95722.0,95721.0,0.054227]
[1733188999726,0.15843445,95722.0,95721.0,0.054227]
[1733189000033,0.002,95722.0,95721.0,0.054227]
[1733189000228,0.15777902,95722.0,95721.0,0.054227]
[1733189004529,0.052228,95719.0,95718.0,0.3608]
[1733189004729,0.26224875,95722.0,95708.0,0.0353]
[1733189004926,0.052232,95712.0,95711.0,0.052232]
[1733189005120,0.052232,95712.0,95707.0,0.0001161]
[1733189005121,0.3608,95719.0,95707.0,0.0001161]
[1733189005423,0.052234,95708.0,95707.0,0.0001161]
[1733189005824,0.20886943,95708.0,95707.0,0.0001161]
[1733189006131,0.20886943,95708.0,95707.0,0.3609161]
[1733189006132,0.15663543,95708.0,95707.0,0.3609161]
[1733189006435,0.052234,95709.0,95707.0,0.3609161]
[1733189006731,0.15852405,95708.0,95707.0,0.4131501]
[1733189007028,0.15952405,95708.0,95707.0,0.4131501]
[1733189007632,0.15852405,95708.0,95707.0,0.4131501]
[1733189009436,0.15952405,95708.0,95707.0,0.4131501]
[1733189011328,0.13476,95721.0,95720.0,0.052227]
[1733189011533,0.02163451,95730.0,95720.0,0.3608]
[1733189011829,0.01903451,95730.0,95729.0,0.052222]
[1733189012032,0.052221,95731.0,95729.0,0.052222]
[1733189012339,0.26096167,95730.0,95729.0,0.052222]
[1733189012835,0.15649576,95730.0,95729.0,0.052222]
[1733189013031,0.15749576,95730.0,95729.0,0.052222]
[1733189013234,0.001,95730.0,95729.0,0.052222]
[1733189013538,0.15811115,95730.0,95729.0,0.052222]
[1733189013741,0.001,95730.0,95729.0,0.052222]
[1733189014435,0.001,95730.0,95729.0,0.085422]
[1733189015341,0.002,95730.0,95729.0,0.085422]
[1733189024435,0.002,95730.0,95729.0,0.216982]
[1733189026733,0.0026,95737.0,95736.0,0.052219]
[1733189027036,0.0026,95743.0,95742.0,0.052215]
[1733189027247,0.13156,95750.0,95742.0,0.052215]
[1733189027248,0.13156,95750.0,95749.0,0.052212]
[1733189027439,0.3608,95762.0,95749.0,0.052212]
[1733189027440,0.0510261,95757.0,95749.0,0.3608]
[1733189027643,0.0510261,95757.0,95755.0,0.052208]
[1733189027848,0.1825861,95757.0,95755.0,0.052208]
[1733189028045,0.18707822,95756.0,95755.0,0.052208]
[1733189028940,0.18807822,95756.0,95755.0,0.052208]
[1733189029243,0.18907822,95756.0,95755.0,0.052208]
[1733189031845,0.15897822,95756.0,95755.0,0.052208]
[1733189033942,0.0026,95765.0,95755.0,0.183768]
[1733189034145,0.0026,95765.0,95764.0,0.413003]
[1733189034343,0.0637,95770.0,95769.0,0.052201]
[1733189034646,0.22123781,95770.0,95769.0,0.052201]
[1733189035843,0.22223781,95770.0,95769.0,0.052201]
[1733189037644,0.22323781,95770.0,95769.0,0.052201]
[1733189039338,0.37985518,95770.0,95769.0,0.052201]
[1733189039544,0.39898662,95770.0,95769.0,0.052201]
[1733189040045,0.052204,95763.0,95760.0,0.052205]
[1733189040255,0.052204,95763.0,95749.0,0.36236632]
[1733189040256,0.13152,95762.0,95751.0,0.0026]
[1733189040546,0.28856852,95762.0,95751.0,0.01891307]
[1733189040745,0.13591737,95761.0,95749.0,0.36236632]
[1733189041048,0.13591737,95761.0,95760.0,0.052205]
[1733189041453,0.29345815,95761.0,95760.0,0.052205]
[1733189041742,0.001,95762.0,95760.0,0.413005]
[1733189042150,0.001,95763.0,95760.0,0.49232]
[1733189042447,0.001,95761.0,95760.0,0.544526]
[1733189042848,0.001,95762.0,95761.0,0.052205]
[1733189043442,0.0026,95771.0,95769.0,0.052201]
[1733189043642,0.0026,95776.0,95775.0,0.052197]
[1733189043852,0.16332,95781.0,95780.0,0.052195]
[1733189044148,0.1893799,95781.0,95780.0,0.052195]
[1733189044952,0.1903799,95781.0,95780.0,0.052195]
[1733189045952,0.002,95781.0,95780.0,0.052195]
[1733189048446,0.002,95781.0,95780.0,0.07195569]
[1733189048643,0.002,95781.0,95780.0,0.052195]
[1733189048942,0.054194,95781.0,95780.0,0.412995]
[1733189049139,0.052199,95773.0,95771.0,0.052199]
[1733189049340,0.0643,95772.0,95771.0,0.052199]
[1733189049539,0.22123264,95772.0,95771.0,0.052199]
[1733189049744,0.32563802,95772.0,95771.0,0.052199]
[1733189051451,0.32663802,95772.0,95771.0,0.052199]
[1733189051648,0.32763802,95772.0,95762.0,0.0026]
[1733189051949,0.32763802,95772.0,95760.0,0.3608]
[1733189051950,0.052202,95767.0,95765.0,0.052202]
[1733189052145,0.052205,95761.0,95760.0,0.3608]
[1733189052343,0.18982243,95766.0,95750.0,0.3608]
[1733189052549,0.18982243,95766.0,95741.0,0.3608]
[1733189052550,0.052211,95750.0,95743.0,0.0026]
[1733189052751,0.052212,95748.0,95745.0,0.052214]
[1733189052953,0.13072,95750.0,95745.0,0.052214]
[1733189052954,0.0324,95747.0,95745.0,0.052214]
[1733189053161,0.0324,95747.0,95741.0,0.3608]
[1733189053162,0.052215,95744.0,95741.0,0.3608]
[1733189053461,0.0322,95746.0,95743.0,0.052215]
[1733189053841,0.2936995,95746.0,95743.0,0.052215]
[1733189054041,0.2614995,95746.0,95744.0,0.052214]
[1733189054251,0.15705704,95746.0,95744.0,0.052214]
[1733189054643,0.15805704,95746.0,95744.0,0.052214]
[1733189055246,0.15905704,95746.0,95744.0,0.052214]
[1733189060055,0.15905704,95746.0,95745.0,0.3608]
[1733189061060,0.15805704,95746.0,95745.0,0.3608]
[1733189061257,0.15905704,95746.0,95745.0,0.3608]
[1733189061947,0.002,95746.0,95745.0,0.3608]
[1733189064647,1e-06,95746.0,95745.0,0.3608]
[1733189065055,1e-06,95754.0,95753.0,0.052205]
[1733189065260,1e-06,95754.0,95753.0,0.543725]
[1733189066662,0.001001,95754.0,95753.0,0.543725]
[1733189066960,0.001001,95754.0,95753.0,0.56319038]
[1733189067558,0.002001,95754.0,95753.0,0.56319038]
[1733189067858,0.182912,95778.0,95773.0,0.052194]
[1733189068156,0.33956773,95778.0,95776.0,0.412993]
[1733189068357,0.44400255,95778.0,95776.0,0.412993]
[1733189068557,0.182912,95778.0,95776.0,0.412993]
[1733189068862,0.26109055,95777.0,95776.0,0.412993]
[1733189070669,0.26209055,95777.0,95776.0,0.412993]
[1733189070853,0.26309055,95777.0,95776.0,0.412993]
[1733189072258,0.15865573,95777.0,95776.0,0.412993]
[1733189075064,0.17837423,95777.0,95776.0,0.412993]
[1733189076565,0.17837423,95777.0,95771.0,0.052195]
[1733189076566,0.052197,95772.0,95771.0,0.052195]
[1733189076753,0.182557,95772.0,95771.0,0.052195]
[1733189076956,0.052197,95769.0,95768.0,0.3608]
[1733189077365,0.20832878,95769.0,95768.0,0.3608]
[1733189077666,0.26054697,95769.0,95768.0,0.3608]
[1733189078065,0.15613178,95769.0,95768.0,0.3608]
[1733189078460,0.13036,95776.0,95769.0,0.052197]
[1733189078461,0.15582746,95771.0,95769.0,0.052197]
[1733189078663,0.001,95772.0,95768.0,0.3916]
[1733189079053,0.15683165,95771.0,95769.0,0.052197]
[1733189079561,0.15783165,95771.0,95769.0,0.052197]
[1733189079960,0.001,95771.0,95769.0,0.052197]
[1733189080260,0.15665413,95770.0,95769.0,0.052197]
[1733189080759,0.26107096,95770.0,95739.0,0.3608]
[1733189080961,0.052203,95757.0,95752.0,0.052206]
[1733189081363,0.20830405,95757.0,95741.0,0.01929337]
[1733189081665,0.31272851,95757.0,95741.0,0.01929337]
[1733189082165,0.31272851,95757.0,95755.0,0.052204]
[1733189082357,0.31272851,95757.0,95752.0,0.052206]
[1733189082560,0.31272851,95757.0,95754.0,0.052205]
[1733189082961,0.31372851,95757.0,95754.0,0.052205]
[1733189083273,0.31472851,95757.0,95751.0,0.0026]
[1733189087267,0.052206,95752.0,95751.0,0.0026]
[1733189087474,0.052209,95747.0,95746.0,0.0026]
[1733189087657,0.052212,95741.0,95740.0,0.0026]
[1733189087858,0.052212,95741.0,95739.0,0.3608]
[1733189088059,0.0333,95740.0,95739.0,0.3608]
[1733189088360,0.19018075,95740.0,95739.0,0.3608]
[1733189089368,0.19118075,95740.0,95739.0,0.3608]
[1733189090370,0.19218075,95740.0,95739.0,0.3608]
[1733189090874,0.24439375,95740.0,95738.0,0.052213]
[1733189091062,0.24439375,95740.0,95739.0,0.3608]
[1733189092973,0.15888075,95740.0,95739.0,0.3608]
[1733189098673,0.10898075,95740.0,95739.0,0.3608]
[1733189103478,0.1304,95758.0,95739.0,0.3608]
[1733189103678,0.0522,95764.0,95762.0,0.0522]
[1733189103872,0.0522,95764.0,95761.0,0.052201]
[1733189104079,0.15650202,95763.0,95761.0,0.052201]
[1733189104386,0.20870202,95763.0,95761.0,0.052201]
[1733189104787,0.0522,95763.0,95761.0,0.052201]
[1733189104983,0.15561526,95762.0,95761.0,0.052201]
[1733189105882,0.001,95764.0,95761.0,0.052201]
[1733189105883,0.15561526,95763.0,95761.0,0.052201]
[1733189106083,0.001,95762.0,95761.0,0.052201]
[1733189106490,0.001,95762.0,95761.0,0.07178459]
[1733189106687,0.001,95762.0,95761.0,0.13648459]
[1733189106987,0.00056001,95784.0,95779.0,0.052191]
[1733189107300,0.05219,95782.0,95780.0,0.05219]
[1733189107694,0.15604406,95781.0,95780.0,0.05219]
[1733189109199,0.001,95781.0,95780.0,0.05919]
[1733189109605,0.15775583,95781.0,95780.0,0.05919]
[1733189110611,0.15875583,95781.0,95780.0,0.05919]
[1733189112108,0.15875583,95781.0,95780.0,0.08939]
[1733189113008,0.15875583,95781.0,95780.0,0.45019]
[1733189115610,0.15875583,95781.0,95780.0,0.58055]
[1733189115807,0.001,95781.0,95780.0,0.58055]
[1733189120709,0.001,95781.0,95780.0,0.41999]
[1733189120918,0.001,95781.0,95780.0,0.55035]
[1733189122413,0.001,95781.0,95780.0,0.41999]
[1733189122607,0.001,95781.0,95780.0,0.55031]
[1733189123107,0.001,95781.0,95780.0,0.41999]
[1733189123108,0.15837264,95781.0,95780.0,0.41999]
[1733189124110,0.39309802,95781.0,95780.0,0.007]
[1733189124311,0.052194,95774.0,95773.0,0.0026]
[1733189124612,0.052197,95769.0,95767.0,0.0026]
[1733189124814,0.052197,95769.0,95767.0,0.052198]
[1733189124815,0.0947,95768.0,95767.0,0.052198]
[1733189125017,0.25190085,95768.0,95767.0,0.052198]
[1733189126322,0.25290085,95768.0,95767.0,0.008]
[1733189126520,0.3573204,95768.0,95767.0,0.008]
[1733189127323,0.3583204,95768.0,95767.0,0.008]
[1733189132625,0.4886804,95768.0,95767.0,0.008]
[1733189133224,0.052201,95761.0,95760.0,0.0026]
[1733189133420,0.413001,95761.0,95759.0,0.00156629]
[1733189133628,0.13036,95760.0,95759.0,0.00156629]
[1733189133822,0.23477955,95760.0,95759.0,0.00156629]
[1733189134022,0.39233476,95760.0,95759.0,0.00156629]
[1733189136031,0.39333476,95760.0,95759.0,0.00156629]
[1733189136228,0.39433476,95760.0,95759.0,0.00156629]
[1733189136726,0.41367003,95760.0,95759.0,0.00156629]
[1733189144827,0.46587203,95760.0,95759.0,0.00156629]
[1733189146532,0.33551203,95760.0,95759.0,0.00156629]
[1733189146929,0.33551203,95760.0,95754.0,0.0026]
[1733189146930,0.23109248,95760.0,95754.0,0.0026]
[1733189147131,0.052204,95756.0,95755.0,0.0328]
[1733189147535,0.20975812,95756.0,95755.0,0.0328]
[1733189148330,0.20975812,95756.0,95755.0,0.085005]
[1733189148542,0.21075812,95756.0,95755.0,0.085005]
[1733189149631,0.15855412,95756.0,95755.0,0.085005]
[1733189149826,0.15955412,95756.0,95755.0,0.085005]
[1733189151039,0.21175812,95756.0,95755.0,0.085005]
[1733189155343,0.15955412,95756.0,95755.0,0.085005]
[1733189158234,0.21175812,95756.0,95755.0,0.085005]
[1733189162830,0.21175812,95756.0,95755.0,0.0328]
[1733189166449,0.21175812,95756.0,95755.0,0.085005]
[1733189166941,0.15955412,95756.0,95755.0,0.085005]
[1733189171055,0.15955412,95756.0,95755.0,0.445805]
[1733189171252,0.43952001,95792.0,95775.0,0.052194]
[1733189171441,0.13032,95780.0,95775.0,0.052194]
[1733189171647,0.15662639,95779.0,95775.0,0.052194]
[1733189172145,0.06876952,95790.0,95774.0,0.13292]
[1733189172349,0.052186,95789.0,95788.0,0.052186]
[1733189172648,0.052186,95789.0,95785.0,0.13032]
[1733189172649,0.15710766,95788.0,95785.0,0.13032]
[1733189172846,0.15710766,95789.0,95788.0,0.052187]
[1733189173149,0.15710766,95791.0,95789.0,0.052186]
[1733189173350,0.052185,95792.0,95789.0,0.052186]
[1733189173552,0.052185,95792.0,95791.0,0.3608]
[1733189173843,0.20806371,95792.0,95791.0,0.3608]
[1733189174437,0.20906371,95792.0,95791.0,0.3608]
[1733189174852,0.21006371,95792.0,95791.0,0.3618]
[1733189176448,0.15787871,95792.0,95791.0,0.413985]
[1733189177247,0.15787871,95792.0,95791.0,0.544305]
[1733189178557,0.15787871,95792.0,95791.0,0.3618]
[1733189182749,0.15787871,95792.0,95791.0,0.001]
[1733189193254,0.21006371,95792.0,95791.0,0.001]
[1733189195661,0.21006371,95792.0,95791.0,0.053185]
[1733189199967,0.15787871,95792.0,95791.0,0.053185]
[1733189201570,0.21006371,95792.0,95791.0,0.053185]
[1733189203765,0.15787871,95792.0,95791.0,0.053185]
[1733189206965,0.15787871,95792.0,95791.0,0.001]
[1733189206966,0.21006371,95792.0,95791.0,0.001]
[1733189207166,0.6752571,95792.0,95784.0,0.0026]
[1733189207366,0.052189,95785.0,95784.0,1e-08]
[1733189207764,0.20918001,95785.0,95784.0,1e-08]
[1733189207969,0.31357722,95785.0,95784.0,1e-08]
[1733189209575,0.31557722,95785.0,95784.0,1e-08]
[1733189213778,0.67637722,95785.0,95784.0,1e-08]
[1733189218372,0.80665722,95785.0,95784.0,1e-08]
[1733189219884,0.57198001,95785.0,95784.0,1e-08]
[1733189223778,0.67638103,95785.0,95784.0,1e-08]
[1733189226386,0.80662103,95785.0,95784.0,1e-08]
[1733189227491,0.052196,95772.0,95771.0,0.3608]
[1733189227791,0.20888221,95772.0,95771.0,0.3608]
[1733189228791,0.20988221,95772.0,95771.0,0.3608]
[1733189229383,0.21088221,95772.0,95771.0,0.3608]
[1733189230080,0.21088221,95772.0,95762.0,0.0305]
[1733189230287,0.052202,95760.0,95759.0,0.0026]
[1733189230491,0.052206,95754.0,95747.0,0.0026]
[1733189230794,0.3608,95766.0,95744.0,0.0323]
[1733189230795,0.05221,95746.0,95744.0,0.0323]
[1733189231288,0.1559782,95745.0,95744.0,0.0323]
[1733189232994,0.1569782,95745.0,95744.0,0.0323]
[1733189233693,0.1579782,95745.0,95744.0,0.0323]
[1733189235491,0.26242284,95745.0,95736.0,0.00156678]
[1733189235891,0.052215,95737.0,95736.0,0.00156678]
[1733189236093,0.413015,95737.0,95736.0,0.00156678]
[1733189236291,0.57027225,95737.0,95736.0,0.00156678]
[1733189236488,0.67471689,95737.0,95736.0,0.00156678]
[1733189237587,0.67571689,95737.0,95736.0,0.00156678]
[1733189238496,0.67671689,95737.0,95736.0,0.00156678]
[1733189239506,0.052221,95725.0,95724.0,1e-06]
[1733189239798,0.052231,95708.0,95700.0,0.1]
[1733189240101,0.70081229,95708.0,95700.0,0.1]
[1733189241595,0.70181229,95708.0,95700.0,0.1]
[1733189242095,0.70281229,95708.0,95700.0,0.1]
[1733189243999,0.8265441,95708.0,95700.0,0.1]
[1733189244391,0.8265841,95708.0,95700.0,0.1]
[1733189246697,0.15950129,95708.0,95700.0,0.4608]
[1733189246903,0.15950129,95708.0,95707.0,0.0523471]
[1733189247392,0.43956001,95726.0,95707.0,0.0001161]
[1733189247593,0.052225,95719.0,95714.0,0.052227]
[1733189247800,0.15695719,95715.0,95714.0,0.052227]
[1733189247994,0.15695719,95718.0,95710.0,0.3616]
[1733189248297,0.10705719,95723.0,95722.0,0.052223]
[1733189248501,0.15695719,95725.0,95724.0,0.052222]
[1733189248697,0.1566048,95734.0,95733.0,0.052217]
[1733189249095,0.052214,95738.0,95733.0,0.052217]
[1733189249296,0.2088198,95737.0,95733.0,0.23862114]
[1733189249504,0.052215,95737.0,95733.0,0.052217]
[1733189250003,0.15663282,95736.0,95734.0,0.052216]
[1733189250395,0.20884882,95736.0,95734.0,0.052216]
[1733189251093,0.15763282,95736.0,95734.0,0.053216]
[1733189252103,0.15863282,95736.0,95734.0,0.053216]
[1733189255201,0.15863282,95736.0,95735.0,0.3608]
[1733189256105,0.0026,95741.0,95735.0,0.6608]
[1733189256305,0.001,95736.0,95735.0,0.6608]
[1733189256604,0.052201,95763.0,95735.0,0.6608]
[1733189256605,0.15628582,95762.0,95735.0,0.6608]
[1733189256901,0.052203,95760.0,95755.0,0.052205]
[1733189257104,0.15628582,95762.0,95755.0,0.052205]
[1733189257105,0.052203,95759.0,95755.0,0.052205]
[1733189257292,0.20848882,95759.0,95755.0,0.052205]
[1733189257497,0.052203,95759.0,95755.0,0.052205]
[1733189257908,0.15766074,95758.0,95755.0,0.052205]
[1733189258102,0.15766074,95758.0,95754.0,0.3608]
[1733189258303,0.15766074,95758.0,95756.0,0.052204]
[1733189259808,0.15866074,95758.0,95756.0,0.052204]
[1733189260508,0.15966074,95758.0,95756.0,0.054204]
[1733189264498,0.002,95758.0,95756.0,0.054204]
[1733189264911,0.15632644,95757.0,95756.0,0.002]
[1733189265209,0.26075744,95757.0,95756.0,0.002]
[1733189265996,0.26075744,95757.0,95754.0,0.3608]
[1733189266202,0.31396444,95757.0,95756.0,0.002]
[1733189267004,0.26175744,95757.0,95756.0,0.002]
[1733189267207,0.15832644,95757.0,95756.0,0.054208]
[1733189268112,0.15732644,95757.0,95756.0,0.052208]
[1733189268316,0.15832644,95757.0,95756.0,0.052208]
[1733189268621,0.15832644,95757.0,95754.0,0.001]
[1733189268914,0.15732644,95757.0,95746.0,0.3608]
[1733189269207,0.15832644,95757.0,95756.0,0.001]
[1733189269803,0.15832644,95757.0,95755.0,0.052208]
[1733189270111,0.052208,95755.0,95754.0,0.001]
[1733189270708,0.05221,95752.0,95750.0,0.05221]
[1733189270905,0.0626,95751.0,95750.0,0.05221]
[1733189271099,0.21972724,95751.0,95750.0,0.05221]
[1733189271304,0.21972724,95751.0,95745.0,0.13024]
[1733189271305,0.052212,95749.0,95745.0,0.13024]
[1733189271510,0.052212,95749.0,95747.0,0.052212]
[1733189271707,0.0626,95751.0,95740.0,0.13024]
[1733189271907,0.0626,95751.0,95749.0,0.052211]
[1733189272104,0.15726503,95750.0,95749.0,0.052211]
[1733189273507,0.15826503,95750.0,95749.0,0.053211]
[1733189273813,0.19056503,95750.0,95749.0,0.053211]
[1733189274215,0.19156503,95750.0,95749.0,0.053211]
[1733189274408,0.19156503,95750.0,95749.0,0.001]
[1733189274716,0.24377603,95750.0,95749.0,0.001]
[1733189275112,0.19156503,95750.0,95749.0,0.001]
[1733189280919,0.052212,95748.0,95747.0,0.01964703]
[1733189281109,0.052212,95748.0,95746.0,0.052213]
[1733189282020,0.053212,95748.0,95747.0,0.001]
[1733189282921,0.054212,95748.0,95746.0,0.053213]
[1733189283321,0.054212,95748.0,95746.0,0.001]
[1733189283525,0.052216,95741.0,95740.0,0.052216]
[1733189284922,0.053216,95741.0,95740.0,0.052216]
[1733189285929,0.054216,95741.0,95740.0,0.052216]
[1733189288522,0.054216,95741.0,95725.0,0.33533354]
[1733189288523,0.1322,95741.0,95725.0,0.33533354]
[1733189288723,0.3608,95726.0,95707.0,0.3609161]
[1733189288930,0.3608,95726.0,95707.0,0.37992013]
[1733189288931,0.052234,95708.0,95707.0,0.37992013]
[1733189289325,0.413034,95708.0,95707.0,0.01912013]
[1733189289634,0.413034,95708.0,95707.0,0.0001161]
[1733189291126,0.414034,95708.0,95707.0,0.0001161]
[1733189292230,0.415034,95708.0,95707.0,0.0001161]
[1733189292935,0.57083047,95708.0,95707.0,0.0001161]
[1733189293135,0.67531548,95708.0,95707.0,0.0001161]
[1733189297044,0.80555548,95708.0,95707.0,0.0001161]
[1733189301943,0.052237,95701.0,95700.0,0.1]
[1733189302247,0.20899741,95701.0,95700.0,0.1]
[1733189302736,0.20907402,95701.0,95700.0,0.1]
[1733189303135,0.21007402,95701.0,95700.0,0.1]
[1733189303336,0.26332968,95701.0,95680.0,0.3608]
[1733189303542,0.052248,95682.0,95680.0,0.3608]
[1733189303740,0.0333,95681.0,95680.0,0.3608]
[1733189304949,0.052249,95680.0,95678.0,0.05225]
[1733189305344,0.0333,95681.0,95670.0,0.01931093]
[1733189305645,0.3608,95682.0,95680.0,0.052249]
[1733189306243,0.16358,95687.0,95686.0,0.052246]
[1733189306547,0.32122088,95687.0,95686.0,0.052246]
[1733189307238,0.19094088,95687.0,95686.0,0.052246]
[1733189307639,0.19194088,95687.0,95686.0,0.052246]
[1733189307843,0.15864088,95687.0,95686.0,0.052246]
[1733189308344,0.001,95687.0,95686.0,0.052246]
[1733189308739,0.002,95687.0,95686.0,0.052246]
[1733189309544,0.001,95687.0,95682.0,0.0307]
[1733189310238,0.002,95687.0,95686.0,0.006]
[1733189310438,0.002,95687.0,95686.0,0.058246]
[1733189310837,0.001,95687.0,95686.0,0.052246]
[1733189311034,0.002,95687.0,95686.0,0.052246]
[1733189311448,0.001,95687.0,95686.0,0.058246]
[1733189311640,0.002,95687.0,95686.0,0.058246]
[1733189312149,0.001,95687.0,95686.0,0.067246]
[1733189314447,0.001,95687.0,95686.0,0.38044636]
[1733189315238,0.001,95687.0,95686.0,0.54509711]
[1733189316644,0.001,95687.0,95686.0,0.25475281]
[1733189317144,0.001,95687.0,95686.0,0.067246]
[1733189322551,0.001,95687.0,95686.0,0.25514644]
[1733189322750,0.001,95687.0,95686.0,0.067246]
[1733189323156,0.001,95687.0,95686.0,0.2551455]
[1733189323558,0.001,95687.0,95686.0,0.067246]
[1733189325953,0.0026,95697.0,95696.0,0.05224]
[1733189326157,0.3608,95706.0,95700.0,0.052238]
[1733189327754,0.00107661,95701.0,95700.0,0.059238]
[1733189327945,0.00207661,95701.0,95700.0,0.068238]
[1733189329458,0.00207661,95701.0,95700.0,0.25607694]
[1733189330261,0.00207661,95701.0,95700.0,0.068238]
[1733189331552,6.1e-07,95701.0,95700.0,0.068238]
[1733189332551,5.895e-05,95701.0,95700.0,0.068238]
[1733189337357,5.895e-05,95701.0,95700.0,0.0879109]
[1733189343364,5.895e-05,95701.0,95700.0,0.016]
[1733189343564,5.895e-05,95701.0,95700.0,0.052238]
[1733189346162,0.01911189,95701.0,95700.0,0.052238]
[1733189346655,5.895e-05,95701.0,95700.0,0.052238]
[1733189365979,5.895e-05,95701.0,95700.0,0.413038]
[1733189376076,0.0026,95707.0,95706.0,0.052235]
[1733189376277,0.0026,95715.0,95714.0,0.05223]
[1733189376581,0.06883637,95720.0,95719.0,0.052227]